Workbook

Sheet Explanatory notes
B14: Consultation on discounts, multipliers, and seasonal factors
B15: on the basis of Article 28 of Commission Regulation (EU) 2017/460 of 16 March 2017 establishing a network code on harmonised transmission tariff structures for gas
B19: Annex 1
B20: Determination of seasonal factors

Sheet Seasonal factors
B3: Determination of seasonal factors in line with Article 15
B4: of Commission Regulation (EU) 2017/460
B5: of 16 March 2017 establishing a network code on harmonised transmission tariff structures for gas
B7: Calculation parameters
E8: Values
B9: Multipliers for quarterly standard capacity products | E9: 1.4
B10: Multipliers for monthly standard capacity products (max 1.5) | E10: 1.5
B11: Multipliers for daily standard capacity products (max 3) | E11: 3
B12: Multipliers for the within-day standard capacity products (max 3) | E12: 3
B13: Power E (0 <= E <= 2) | E13: 1.5
B17: Average hourly allocation for each month [kWh]
B19: Gas month | C19: Year
C20: 2014 | D20: 2015 | E20: 2016 | F20: 2017 | G20: 2018*
B21: January | C21: 2486862.757 | D21: 2821679.718 | E21: 3500363.108 | F21: 4116951.56 | G21: 1938809.472
B22: February | C22: 2342931.998 | D22: 2938983.789 | E22: 3117740.49 | F22: 3555490.155 | G22: 2422655.362
B23: March | C23: 1906810.179 | D23: 2377780.265 | E23: 3048177.728 | F23: 2784431.997 | G23: 2145703.444
B24: April | C24: 1889695.655 | D24: 1836989.738 | E24: 2431677.545 | F24: 2454214.817 | G24: 1284763.486
B25: May | C25: 1656322.514 | D25: 1730779.828 | E25: 1956984.551 | F25: 2236618.495 | G25: 1117768.222
B26: June | C26: 1800781.605 | D26: 1715589.231 | E26: 2078140.035 | F26: 2374953.823 | G26: 1045506.165
B27: July | C27: 1869861.364 | D27: 1822829.066 | E27: 1355156.789 | F27: 2511863.911 | G27: 953024.291
B28: August | C28: 1878408.461 | D28: 1349329.008 | E28: 1943557.344 | F28: 2643421.352 | G28: 941550.5202
B29: September | C29: 2102434.144 | D29: 1806583.231 | E29: 2331034.844 | F29: 2421504.097 | G29: 1051704.753
B30: October | C30: 2415251.267 | D30: 2572760.64 | E30: 2935681.664 | F30: 1819172.911 | G30: 1223645.452
B31: November | C31: 2708023.914 | D31: 2925143.534 | E31: 3327375.054 | F31: 1938760.259 | G31: 1568609.55
B32: December | C32: 2955218.638 | D32: 3614889.952 | E32: 3577382.281 | F32: 2435287.836 | G32: 1775922.691
B33: Average | C33: =AVERAGE(C21:C32) -> 2167716.875 | D33: =AVERAGE(D21:D32) -> 2292778.167 | E33: 2633605.953 | F33: 2607722.601 | G33: 1455805.284
B35: * part of data for 2018 determined on the basis of forecasted flows.
B38: The prescribed calculation procedure in line with Article 15 (paragraph from 2 to 5)
B39: Note: The procedure for calculating seasonal factors for monthly standard capacity products for firm capacity for 2019 is based on the forecasted flows
B41: Article 15 (3) points a & b
B42: (a) “the average data on the forecasted flows or the forecasted contracted capacity, where the seasonal factors are calculated for some or all of the interconnection points” (b) the resulting values referred to in point (a) shall be summed up”
B44: Gas month | C44: Forecasted average hourly gas flow in 2019 [kWh]
B45: January | C45: 2093914.23
B46: February | C46: 2083483.611
B47: March | C47: 2038418.272
B48: April | C48: 1284763.486
B49: May | C49: 1101001.699
B50: June | C50: 1029823.572
B51: July | C51: 938728.9266
B52: August | C52: 927427.2624
B53: September | C53: 1035929.182
B54: October | C54: 1223645.452
B55: November | C55: 1607824.789
B56: December | C56: 1989033.414
B57: Sum | C57: =SUM(C45:C56) -> 17353993.9
B59: Article 15 (3) point c
B60: “the usage rate shall be calculated by dividing each of the resulting values referred to in point (a) by the resulting value referred to in point (b);
B63: Gas month | C63: The usage rate | D63: Correction of the usage rate In case the value is 0
B64: January | C64: =C45/$C$57 -> 0.120658924 | D64: =IF(C45/$C$57=0,0.1,C45/$C$57) -> 0.120658924
B65: February | C65: =C46/$C$57 -> 0.1200578739 | D65: =IF(C46/$C$57=0,0.1,C46/$C$57) -> 0.1200578739
B66: March | C66: 0.1174610458 | D66: 0.1174610458
B67: April | C67: 0.07403272663 | D67: 0.07403272663
B68: May | C68: 0.06344370672 | D68: 0.06344370672
B69: June | C69: 0.05934216517 | D69: 0.05934216517
B70: July | C70: 0.05409296167 | D70: 0.05409296167
B71: August | C71: 0.05344171883 | D71: 0.05344171883
B72: September | C72: 0.05969399251 | D72: 0.05969399251
B73: October | C73: 0.07051088406 | D73: 0.07051088406
B74: November | C74: 0.09264868931 | D74: 0.09264868931
B75: December | C75: 0.1146153114 | D75: 0.1146153114
B78: Article 15(3) point d
B79: “each of the resulting values referred to in point (c) shall be multiplied by 12. Where the resulting values are equal to 0, these values shall be adjusted to whichever of the following is the lower: 0,1 or the lowest of the resulting values other than 0”
B81: Gas month | C81: The usage rate x 12
B82: January | C82: =IF(C64=0,MIN($D$64:$D$75),C64)*12 -> 1.447907088
B83: February | C83: 1.440694487
B84: March | C84: 1.40953255
B85: April | C85: 0.8883927196
B86: May | C86: 0.7613244806
B87: June | C87: 0.712105982
B88: July | C88: 0.64911554
B89: August | C89: 0.641300626
B90: September | C90: 0.7163279101
B91: October | C91: 0.8461306087
B92: November | C92: 1.111784272
B93: December | C93: 1.375383737
B95: Article 15(3) point e
B96: “the initial level of the respective seasonal factors shall be calculated by raising each of the resulting values referred to in point (d) to the same power which is no less than 0 and no more than 2”
B98: Gas month | C98: Seasonal factor
B99: January | C99: =POWER(C82,$E$13) -> 1.742252278
B100: February | C100: =POWER(C83,$E$13) -> 1.729250228
B101: March | C101: 1.673449704
B102: April | C102: 0.83735089
B103: May | C103: 0.6642853769
B104: June | C104: 0.6009204047
B105: July | C105: =POWER(C88,$E$13) -> 0.5229775059
B106: August | C106: 0.5135615438
B107: September | C107: 0.6062724158
B108: October | C108: 0.7783162696
B109: November | C109: 1.17227847
B110: December | C110: 1.613005421
B112: Article 15(3) point f
B113: “the arithmetic mean of the products of the resulting values referred to in point (e) and the multiplier for monthly standard capacity products shall be calculated”
B115: Gas month | C115: The initial level of a seasonal factor x multiplier
C116: Monthly | D116: Daily | E116: Within-day
B117: January | C117: =C99*$E$10 -> 2.613378417 | D117: =C99*$E$11 -> 5.226756834 | E117: =C99*$E$12 -> 5.226756834
B118: February | C118: =C100*$E$10 -> 2.593875341 | D118: =C100*$E$11 -> 5.187750683 | E118: =C100*$E$12 -> 5.187750683
B119: March | C119: 2.510174556 | D119: 5.020349111 | E119: 5.020349111
B120: April | C120: 1.256026335 | D120: 2.51205267 | E120: 2.51205267
B121: May | C121: 0.9964280654 | D121: 1.992856131 | E121: 1.992856131
B122: June | C122: 0.9013806071 | D122: 1.802761214 | E122: 1.802761214
B123: July | C123: 0.7844662589 | D123: 1.568932518 | E123: 1.568932518
B124: August | C124: 0.7703423158 | D124: 1.540684632 | E124: 1.540684632
B125: September | C125: 0.9094086237 | D125: 1.818817247 | E125: 1.818817247
B126: October | C126: 1.167474404 | D126: 2.334948809 | E126: 2.334948809
B127: November | C127: 1.758417705 | D127: 3.516835409 | E127: 3.516835409
B128: December | C128: 2.419508132 | D128: 4.839016264 | E128: 4.839016264
B129: Average | C129: =AVERAGE(C117:C128) -> 1.556740063 | D129: =AVERAGE(D117:D128) -> 3.113480127 | E129: =AVERAGE(E117:E128) -> 3.113480127
B131: Article 15(3) point g
B132: “the resulting value referred to in point (f) shall be compared with the range referred to in Article 13(1), as follows:
B133: (i) if this value falls within this range then the level of seasonal factors shall be equal to with the respective resulting values referred to in point (e); (ii) if this value falls outside of this range then point (h) shall apply”
B135: Article 15(3) point h
B136: "the level of seasonal factors shall be calculated as the product of the respective resulting values referred to in point (e) and the correction factor calculated as follows:
B137: i) where the resulting value referred to in point (f) is more than 1.5, the correction factor shall be calculated as 1.5 divided by this value; ii) where the resulting value referred to in point (f) is less than 1, the correction factor shall be calculated as 1 divided by this value."
C139: Monthly | D139: Daily | E139: Within-day
B140: Correction factor | C140: =1.5/C129 -> 0.963551999 | D140: =3/D129 -> 0.963551999 | E140: =3/E129 -> 0.963551999
B142: Gas month | C142: Seasonal factor
C143: Monthly | D143: Daily | E143: Within-day
B144: January | C144: =IF($C$129>1.5,C99*$C$140,C99) -> 1.678750665 | D144: =IF($D$129>3,C99*$D$140,C99) -> 1.678750665 | E144: =IF($E$129>3,C99*$E$140,C99) -> 1.678750665
B145: February | C145: =IF($C$129>1.5,C100*$C$140,C100) -> 1.666222514 | D145: =IF($D$129>3,C100*$D$140,C100) -> 1.666222514 | E145: =IF($E$129>3,C100*$E$140,C100) -> 1.666222514
B146: March | C146: 1.612455807 | D146: 1.612455807 | E146: 1.612455807
B147: April | C147: 0.8068311239 | D147: 0.8068311239 | E147: 0.8068311239
B148: May | C148: 0.6400735028 | D148: 0.6400735028 | E148: 0.6400735028
B149: June | C149: 0.5790180572 | D149: 0.5790180572 | E149: 0.5790180572
B150: July | C150: 0.5039160213 | D150: 0.5039160213 | E150: 0.5039160213
B151: August | C151: 0.4948432522 | D151: 0.4948432522 | E151: 0.4948432522
B152: September | C152: 0.5841749982 | D152: 0.5841749982 | E152: 0.5841749982
B153: October | C153: 0.7499481974 | D153: 0.7499481974 | E153: 0.7499481974
B154: November | C154: 1.129551263 | D154: 1.129551263 | E154: 1.129551263
B155: December | C155: 1.554214598 | D155: 1.554214598 | E155: 1.554214598
B157: Article 15(4)
B158: “For daily standard capacity products for firm capacity and within-day standard capacity products for firm capacity, the seasonal factors shall be calculated by carrying out the steps set out in paragraph 3(f) to (h), mutatis mutandis.”
B161: Article 15(5)
B162: “For quarterly standard capacity products for firm capacity, the seasonal factors shall be calculated in sequential steps as follows:
B163: (a) the initial level of the respective seasonal factors shall be calculated as either of the following: (i) equal to the arithmetic mean of the respective seasonal factors applicable for the three relevant months; (ii) (ii) no less than the lowest and no more than the highest level of the respective seasonal factors applicable for the three relevant months.”
B165: “(b) the steps set out in paragraph 3(f) to (h) shall be carried out, using the resulting values referred to in point (a), mutatis mutandis.”
C167: (i) Arithmetic mean | D167: (ii) Minimum <=seasonal factor <= maximum
B168: Gas quarter | C168: Seasonal factor | D168: Seasonal factorminimum | E168: Seasonal factormaximum
B169: Q2 | C169: =AVERAGE($C$144:$C$146) -> 1.652476329 | D169: =MIN($C$144:$C$146) -> 1.612455807 | E169: =MAX($C$144:$C$146) -> 1.678750665
B170: Q3 | C170: =AVERAGE($C$147:$C$149) -> 0.6753075613 | D170: =MIN($C$147:$C$149) -> 0.5790180572 | E170: =MAX($C$147:$C$149) -> 0.8068311239
B171: Q4 | C171: =AVERAGE($C$150:$C$152) -> 0.5276447572 | D171: =MIN($C$150:$C$152) -> 0.4948432522 | E171: =MAX($C$150:$C$152) -> 0.5841749982
B172: Q1 | C172: =AVERAGE($C$153:$C$155) -> 1.144571353 | D172: =MIN($C$153:$C$155) -> 0.7499481974 | E172: =MAX($C$153:$C$155) -> 1.554214598
B174: Article 15(6)
B175: “For all non-yearly standard capacity products for firm capacity, the values resulting from the calculation referred to in paragraphs 3 to 5 may be rounded up or down.”
D177: Seasonal factor
B178: Gas month | C178: =C44 -> Forecasted average hourly gas flow in 2019 [kWh] | D178: Quarterly | E178: Monthly | F178: Daily | G178: Within-day
B179: January | C179: =C45 -> 2093914.23 | D179: =ROUND($C$169,3) -> 1.652 | E179: =ROUND(C144,3) -> 1.679 | F179: =ROUND(D144,3) -> 1.679 | G179: =ROUND(E144,3) -> 1.679
B180: February | C180: =C46 -> 2083483.611 | D180: =ROUND($C$169,3) -> 1.652 | E180: 1.666 | F180: 1.666 | G180: 1.666
B181: March | C181: 2038418.272 | D181: 1.652 | E181: 1.612 | F181: 1.612 | G181: 1.612
B182: April | C182: 1284763.486 | D182: =ROUND($C$170,3) -> 0.675 | E182: 0.807 | F182: 0.807 | G182: 0.807
B183: May | C183: 1101001.699 | D183: =ROUND($C$170,3) -> 0.675 | E183: 0.64 | F183: 0.64 | G183: 0.64
B184: June | C184: 1029823.572 | D184: 0.675 | E184: 0.579 | F184: 0.579 | G184: 0.579
B185: July | C185: 938728.9266 | D185: =ROUND($C$171,3) -> 0.528 | E185: 0.504 | F185: 0.504 | G185: 0.504
B186: August | C186: 927427.2624 | D186: =ROUND($C$171,3) -> 0.528 | E186: 0.495 | F186: 0.495 | G186: 0.495
B187: September | C187: 1035929.182 | D187: 0.528 | E187: 0.584 | F187: 0.584 | G187: 0.584
B188: October | C188: 1223645.452 | D188: =ROUND($C$172,3) -> 1.145 | E188: 0.75 | F188: 0.75 | G188: 0.75
B189: November | C189: 1607824.789 | D189: =ROUND($C$172,3) -> 1.145 | E189: 1.13 | F189: 1.13 | G189: 1.13
B190: December | C190: 1989033.414 | D190: 1.145 | E190: 1.554 | F190: 1.554 | G190: 1.554
